fUSD/lending_fUSD_20250307
["ID","MTS","AMOUNT","RATE_DAILY","PERIOD"]
[355594076,1741343433382,-2032.0,9.744e-05,2]
[355594077,1741343433391,-3931.0,9.744e-05,2]
[355594078,1741343433400,-500.0,9.773e-05,2]
[355594079,1741343433410,-160.26645466,9.773e-05,2]
[355594080,1741343433421,-153.34988725,9.773e-05,2]
[355594081,1741343433433,-500.0,9.773e-05,2]
[355594082,1741343433442,-153.5175473,9.78e-05,2]
[355594083,1741343433452,-255.0,9.794e-05,2]
[355594084,1741343433464,-158.0,9.798e-05,3]
[355594085,1741343433473,-180.0,9.798e-05,3]
[355594086,1741343433483,-2775.81411228,9.798e-05,2]
[355594087,1741343433543,-658.53,9.798e-05,2]
[355594088,1741343433563,-13762.95105387,9.798e-05,2]
[355594089,1741343433585,-295.95831041,9.798e-05,2]
[355594102,1741343440244,-446.53,9.744e-05,2]
[355594103,1741343440435,-831.47,9.744e-05,2]
[355594104,1741343440445,-349.35964998,9.798e-05,2]
[355594105,1741343440457,-8277.68331786,9.798e-05,2]
[355594108,1741343443247,-642.0,9.744e-05,2]
[355594109,1741343443258,-1384.8290587,9.798e-05,2]
[355594110,1741343443270,-3306.89943346,9.798e-05,2]
[355594122,1741343446074,-266.43681,9.798e-05,2]
[355594123,1741343446304,-1139.57292699,9.798e-05,2]
[355594124,1741344033294,5483.76,0.00020111,120]
[355594126,1741344584419,-1374.43,8.219e-05,2]
[355594128,1741344584450,-797.0,8.219e-05,2]
[355594131,1741344584481,-317.35,8.238e-05,2]
[355594133,1741344584516,-1195.44610307,8.261e-05,2]
[355594135,1741344584555,-3092.47405357,8.261e-05,2]
[355594142,1741344632360,-300.0,8.26e-05,2]
[355594144,1741344632371,-3869.58675566,8.261e-05,2]
[355594145,1741344632423,-7056.85428368,8.261e-05,2]
[355594146,1741344632436,-8685.63880402,8.261e-05,2]
[355594147,1741344632449,-1000.0,8.318e-05,2]
[355594148,1741344632460,-1500.0,8.349e-05,2]
[355594149,1741344632471,-1994.42433049,8.349e-05,2]
[355594150,1741344632483,-504.32,8.467e-05,2]
[355594151,1741344632496,-153.3,8.645e-05,2]
[355594152,1741344632507,-165.07,8.645e-05,2]
[355594153,1741344632517,-836.59591654,8.652e-05,2]
[355594154,1741344632541,-1163.40408346,8.652e-05,2]
[355594155,1741344632551,-2231.18,8.652e-05,2]
[355594156,1741344632562,-250.0,8.671e-05,2]
[355594157,1741344632573,-150.0,8.685e-05,2]
[355594158,1741344632583,-153.3,8.702e-05,2]
[355594159,1741344632592,-153.3,8.76e-05,2]
[355594160,1741344632602,-153.3,8.818e-05,2]
[355594161,1741344632612,-153.3,8.875e-05,2]
[355594162,1741344632622,-176.06,8.919e-05,2]
[355594163,1741344632632,-153.3,8.933e-05,2]
[355594164,1741344632641,-150.0,8.989e-05,2]
[355594165,1741344632650,-2554.71191671,8.99e-05,2]
[355594166,1741344632676,-885.60698019,8.99e-05,2]
[355594178,1741344638351,-1682.2401957,8.99e-05,2]
[355594179,1741344638362,-7565.30527849,8.99e-05,2]
[355594180,1741344638374,-414.26349789,8.99e-05,2]
[355594181,1741344638410,-6961.30081313,8.99e-05,2]
[355594182,1741344638421,-2216.76534,8.99e-05,2]
[355594189,1741344640382,-400.15737426,8.99e-05,2]
[355594190,1741344640510,-5007.455,8.99e-05,2]
[355594191,1741344640573,-193.99035928,8.99e-05,2]
[355594192,1741344640605,-2241.2295951,8.99e-05,2]
[355594193,1741344640614,-153.3,8.991e-05,2]
[355594194,1741344640624,-4438.94410823,9e-05,2]
[355594195,1741344640826,-538.49795999,9e-05,2]
[355594196,1741344640841,-1747.5,9e-05,2]
[355594197,1741344640853,-387.17716274,9e-05,2]
[355594198,1741344640864,-607.944495,9e-05,2]
[355594199,1741344640889,-997.65756837,9e-05,2]
[355594200,1741344640901,-487.52557497,9e-05,2]
[355594213,1741344644571,-59451.81612487,9e-05,2]
[355594214,1741344644581,-153.3,9.048e-05,2]
[355594215,1741344644590,-420.0,9.086e-05,2]
[355594216,1741344644600,-300.0,9.1e-05,3]
[355594217,1741344644609,-153.3,9.106e-05,2]
[355594218,1741344644619,-153.3,9.163e-05,2]
[355594219,1741344644628,-600.0,9.2e-05,3]
[355594220,1741344644637,-153.3,9.221e-05,2]
[355594221,1741344644647,-317.35,9.268e-05,2]
[355594222,1741344644656,-153.3,9.279e-05,2]
[355594223,1741344644665,-1000.0,9.3e-05,3]
[355594224,1741344644675,-153.3,9.336e-05,2]
[355594225,1741344644684,-1000.0,9.358e-05,2]
[355594226,1741344644695,-1300.0,9.4e-05,3]
[355594227,1741344644704,-1700.0,9.5e-05,3]
[355594228,1741344644714,-150.0,9.562e-05,7]
[355594229,1741344644724,-64611.1052,9.598e-05,2]
[355594230,1741344644734,-1747.097,9.6e-05,2]
[355594231,1741344644745,-163.078,9.6e-05,2]
[355594232,1741344644755,-300.0,9.6e-05,3]
[355594233,1741344644765,-4520.3979,9.698e-05,2]
[355594234,1741344644778,-675.3288,9.698e-05,2]
[355594235,1741344644790,-36343.1393,9.698e-05,2]
[355594236,1741344644799,-6300.4274,9.7e-05,2]
[355594237,1741344644809,-300.0,9.7e-05,3]
[355594238,1741344644818,-1318.0,9.7e-05,2]
[355594239,1741344644831,-1278.0,9.744e-05,2]
[355594240,1741344644840,-2032.0,9.744e-05,2]
[355594241,1741344644848,-150.0,9.744e-05,2]
[355594242,1741344644858,-571.0,9.744e-05,2]
[355594243,1741344644867,-641.0,9.744e-05,2]
[355594244,1741344644876,-1459.0,9.744e-05,2]
[355594245,1741344644885,-786.0,9.744e-05,2]
[355594246,1741344644896,-541.0,9.744e-05,2]
[355594247,1741344644906,-1270.0,9.744e-05,2]
[355594248,1741344644916,-907.0,9.744e-05,2]
[355594249,1741344644925,-1428.0,9.744e-05,2]
[355594250,1741344644935,-4042.0,9.744e-05,2]
[355594251,1741344644948,-3931.0,9.744e-05,2]
[355594252,1741344644958,-1012.0,9.744e-05,2]
[355594253,1741344644967,-150.0,9.744e-05,2]
[355594254,1741344644977,-500.76481709,9.773e-05,2]
[355594255,1741344644987,-500.0,9.773e-05,2]
[355594256,1741344644997,-250.1487,9.773e-05,2]
[355594257,1741344645007,-162.58346843,9.773e-05,2]
[355594258,1741344645016,-16790.8537797,9.792e-05,2]
[355594259,1741344645026,-82880.77994096,9.797e-05,2]
[355594260,1741344645036,-546.54680239,9.797e-05,2]
[355594261,1741344645048,-151.0,9.797e-05,2]
[355594262,1741344645059,-151.0,9.797e-05,2]
[355594263,1741344645070,-158.0,9.798e-05,3]
[355594264,1741344645082,-171.0,9.798e-05,3]
[355594265,1741344645092,-22835.65721951,9.798e-05,2]
[355594266,1741344645102,-279.87785235,9.799e-05,2]
[355594267,1741344645112,-36036.21043907,9.8e-05,2]
[355594268,1741344645121,-147599.32104333,9.8e-05,2]
[355594269,1741344645133,-17839.22223483,9.8e-05,2]
[355594270,1741344646401,-17760.2,9.8e-05,2]
[355594271,1741344646570,-500.0,9.8e-05,2]
[355594272,1741344646582,-6560.32019172,9.8e-05,2]
[355594273,1741344646593,-815.01166789,9.8e-05,2]
[355594274,1741344646605,-1303.17693193,9.8e-05,2]
[355594275,1741344646617,-1000.0,9.8e-05,2]
[355594276,1741344646630,-756.78063558,9.8e-05,2]
[355594277,1741344646649,-602.0,9.8e-05,2]
[355594278,1741344646701,-8953.3,9.8e-05,2]
[355594279,1741345175079,-300.0,9.8e-05,3]
[355594280,1741345175101,-158.0,9.8e-05,3]
[355594281,1741345175123,-163.0,9.8e-05,3]
[355594282,1741345175145,-300.0,9.9e-05,3]
[355594283,1741345175171,-845.0,0.0001,3]
[355594289,1741345831534,-1386.24,8.219e-05,2]
[355594290,1741345831544,-150.65,8.677e-05,2]
[355594291,1741345831554,-685.55773458,8.678e-05,2]
[355594292,1741345831563,-570.89,8.678e-05,2]
[355594293,1741345831572,-250.0,8.678e-05,2]
[355594294,1741345831582,-7941.63985877,8.719e-05,2]
[355594295,1741345831593,-15958.36014123,8.719e-05,2]
[355594296,1741345831605,-1000.0,8.723e-05,2]
[355594297,1741345831614,-544.91,8.742e-05,2]
[355594298,1741345831624,-180.19,8.748e-05,2]
[355594299,1741345831633,-150.65,8.908e-05,2]
[355594300,1741345831642,-3030.8679754,9e-05,2]
[355594301,1741345831652,-150.0,9.041e-05,2]
[355594302,1741345831661,-2672.89,9.041e-05,2]
[355594303,1741345831670,-1647.07,9.041e-05,2]
[355594304,1741345831680,-150.65,9.139e-05,2]
[355594305,1741345831689,-150.65,9.371e-05,2]
[355594306,1741345831698,-150.0,9.544e-05,2]
[355594307,1741345831708,-1397.678,9.602e-05,2]
[355594308,1741345831717,-250.0,9.674e-05,2]
[355594309,1741345831727,-839.22693316,9.697e-05,2]
[355594310,1741345831738,-160.77306684,9.697e-05,2]
[355594311,1741345831747,-151.0,9.698e-05,2]
[355594312,1741345831756,-151.0,9.698e-05,2]
[355594313,1741345831765,-150.0,9.699e-05,2]
[355594314,1741345831774,-144.02004574,9.7e-05,2]
[355594315,1741345831844,-6823.83305243,9.7e-05,2]
[355594316,1741345831930,-1635.08520183,9.7e-05,2]
[355594317,1741345831940,-150.0,9.719e-05,2]
[355594318,1741345831950,-150.0,9.722e-05,2]
[355594319,1741345831959,-150.0,9.723e-05,2]
[355594320,1741345831969,-150.0,9.726e-05,2]
[355594321,1741345831978,-150.0,9.728e-05,2]
[355594322,1741345831987,-150.0,9.73e-05,2]
[355594323,1741345831996,-150.0,9.733e-05,2]
[355594324,1741345832006,-150.0,9.733e-05,2]
[355594325,1741345832015,-8130.93628293,9.734e-05,2]
[355594326,1741345832025,-150.0,9.738e-05,2]
[355594327,1741345832034,-150.0,9.74e-05,2]
[355594328,1741345832045,-150.0,9.741e-05,2]
[355594329,1741345832055,-150.0,9.744e-05,2]
[355594330,1741345832064,-2032.0,9.744e-05,2]
[355594331,1741345832073,-1278.0,9.744e-05,2]
[355594332,1741345832083,-641.0,9.744e-05,2]
[355594333,1741345832092,-571.0,9.744e-05,2]
[355594336,1741345832102,-1459.0,9.744e-05,2]
[355594337,1741345832111,-786.0,9.744e-05,2]
[355594338,1741345832121,-1270.0,9.744e-05,2]
[355594340,1741345832130,-907.0,9.744e-05,2]
[355594343,1741345832140,-541.0,9.744e-05,2]
[355594344,1741345832150,-1428.0,9.744e-05,2]
[355594346,1741345832159,-4042.0,9.744e-05,2]
[355594348,1741345832169,-1113.0,9.744e-05,2]
[355594350,1741345832180,-3931.0,9.744e-05,2]
[355594352,1741345832189,-150.0,9.744e-05,2]
[355594354,1741345832199,-1012.0,9.744e-05,2]
[355594356,1741345832208,-150.0,9.754e-05,2]
[355594358,1741345832218,-150.0,9.757e-05,2]
[355594359,1741345832229,-150.0,9.759e-05,2]
[355594361,1741345832239,-150.0,9.76e-05,2]
[355594363,1741345832248,-150.0,9.762e-05,2]
[355594364,1741345832258,-150.0,9.764e-05,2]
[355594366,1741345832268,-150.0,9.766e-05,2]
[355594368,1741345832277,-150.0,9.769e-05,2]
[355594369,1741345832286,-150.0,9.769e-05,2]
[355594370,1741345832296,-150.0,9.772e-05,2]
[355594371,1741345832306,-150.0,9.774e-05,2]
[355594372,1741345832316,-150.0,9.776e-05,2]
[355594373,1741345832326,-150.0,9.777e-05,2]
[355594374,1741345832335,-150.0,9.777e-05,2]
[355594375,1741345832344,-150.0,9.779e-05,2]
[355594376,1741345832355,-1000.0,9.781e-05,2]
[355594377,1741345832364,-150.0,9.784e-05,2]
[355594378,1741345832374,-150.0,9.784e-05,2]
[355594379,1741345832383,-150.0,9.785e-05,2]
[355594380,1741345832393,-150.0,9.788e-05,2]
[355594381,1741345832402,-150.0,9.79e-05,2]
[355594382,1741345832412,-150.0,9.791e-05,2]
[355594383,1741345832421,-150.0,9.795e-05,2]
[355594384,1741345832430,-151.0,9.797e-05,2]
[355594385,1741345832440,-8492.57080538,9.798e-05,2]
[355594386,1741345832450,-1264.0,9.799e-05,2]
[355594387,1741345832459,-150.0,9.799e-05,2]
[355594388,1741345832469,-51730.94822502,9.8e-05,2]
[355594389,1741345832478,-82460.81682698,9.8e-05,2]
[355594390,1741345832498,-657.24887415,9.8e-05,2]
[355594393,1741345837405,-72070.47807976,9.8e-05,2]
[355594394,1741345837482,-312.11160377,9.8e-05,2]
[355594395,1741345837530,-745.76479357,9.8e-05,2]
[355594396,1741345837587,-2012.6,9.8e-05,2]
[355594397,1741345837599,-294.75802627,9.8e-05,2]
[355594398,1741345837615,-1943.46898318,9.8e-05,2]
[355594399,1741345837710,-252.35315091,9.8e-05,2]
[355594471,1741345839641,-2338.76117811,9.8e-05,2]
[355594472,1741345839654,-3668.41308011,9.8e-05,2]
[355594478,1741345842504,-699.5899999,9.8e-05,2]
[355594479,1741345842516,-424.49932413,9.8e-05,2]
[355594481,1741345843244,-26296.26810486,9.8e-05,2]
[355594482,1741345843256,-5434.32,9.8e-05,2]
[355594483,1741345843269,-53212.80573507,9.8e-05,2]
[355594484,1741345843327,-490.28074772,9.8e-05,2]
[355594485,1741345843365,-914.74180962,9.8e-05,2]
[355594492,1741345845614,-6285.72,9.8e-05,2]
[355594493,1741345845718,-447.05137118,9.8e-05,2]
[355594494,1741345845812,-9028.3,9.8e-05,2]
[355594521,1741346967501,400.0,0.0002,120]
[355594538,1741347031709,-1114.16668528,8.219e-05,2]
[355594539,1741347031721,-267.10331472,8.219e-05,2]
[355594540,1741347031732,-300.0,8.621e-05,2]
[355594541,1741347031742,-150.0,8.621e-05,2]
[355594542,1741347031751,-256.07630581,8.622e-05,2]
[355594543,1741347031774,-151.69059419,8.622e-05,2]
[355594544,1741347031785,-313.0516,8.622e-05,2]
[355594545,1741347031794,-1124.40639383,8.622e-05,2]
[355594546,1741347031823,-895.07330617,8.622e-05,2]
[355594547,1741347031833,-267.4114,8.622e-05,2]
[355594548,1741347031842,-680.30421042,8.622e-05,2]
[355594549,1741347031930,-4182.41549141,8.622e-05,2]
[355594550,1741347031986,-3555.05539817,8.622e-05,2]
[355594551,1741347031995,-590.46054875,8.622e-05,2]
[355594552,1741347032007,-1616.28208943,8.622e-05,2]
[355594553,1741347032308,-993.78526182,8.622e-05,2]
[355594556,1741347032319,-397.5906,8.622e-05,2]
[355594557,1741347032328,-500.29613421,8.703e-05,2]
[355594559,1741347032338,-489.10413155,8.703e-05,2]
[355594561,1741347032348,-500.0,8.722e-05,2]
[355594564,1741347032358,-500.0,8.722e-05,2]
[355594565,1741347032367,-187.39800582,8.722e-05,2]
[355594567,1741347032376,-488.42511955,8.722e-05,2]
[355594569,1741347032386,-165.07,8.723e-05,2]
[355594571,1741347032396,-544379.66816508,8.723e-05,2]
[355594574,1741347032409,-459098.41164759,8.723e-05,2]
[355594587,1741347037620,-330.30015207,8.722e-05,2]
[355594588,1741347037677,-160.48241098,8.722e-05,2]
[355594589,1741347037687,-128.70487103,8.723e-05,2]
[355594590,1741347037867,-281.78311804,8.723e-05,2]
[355594592,1741347037949,-4099.83324607,8.723e-05,2]
[355594593,1741347037964,-1340.865,8.723e-05,2]
[355594594,1741347037975,-654.06454835,8.723e-05,2]
[355594595,1741347038010,-15379.83320771,8.723e-05,2]
[355594599,1741347039821,-557.06,8.722e-05,2]
[355594600,1741347039983,-1514.36310921,8.722e-05,2]
[355594601,1741347040146,-1339.03782811,8.722e-05,2]
[355594612,1741347042811,-10498.75787404,8.722e-05,2]
[355594613,1741347043583,-5621.78031799,8.722e-05,2]
[355594615,1741347045693,-865.69549215,8.722e-05,2]
[355594616,1741347045856,-3371.99993437,8.722e-05,2]
[355594624,1741347509290,2447.653,8.036e-05,2]
[355594625,1741347509354,166.743,8.036e-05,2]
[355594627,1741348007260,-222.3344,8.1e-05,2]
[355594628,1741348032568,-230.0,8.183e-05,2]
[355594629,1741348051486,200.0,7.2e-05,2]
[355594630,1741348053604,500.0,7.3e-05,2]
[355594631,1741348056092,800.0,7.4e-05,2]
[355594632,1741348057848,1100.0,7.5e-05,2]
[355594633,1741348059955,1300.0,7.6e-05,2]
[355594634,1741348062088,200.0,7.7e-05,2]
[355594635,1741348064299,200.0,7.8e-05,2]
[355594636,1741348066553,200.0,7.9e-05,2]
[355594637,1741348068491,200.0,8e-05,2]
[355594638,1741348104740,-272.43193085,8.183e-05,2]
[355594639,1741348104761,-727.56806915,8.19e-05,2]
[355594641,1741348206464,-4803.31955646,8.19e-05,2]
[355594642,1741348206488,-150.0,8.194e-05,2]
[355594643,1741348206510,-1000.0,8.199e-05,2]
[355594644,1741348206534,-1000.0,8.199e-05,2]
[355594645,1741348206557,-1926.27087053,8.199e-05,2]
[355594646,1741348206581,-150.0,8.199e-05,2]
[355594647,1741348206605,-192.61172102,8.199e-05,2]
[355594648,1741348206628,-500.0,8.199e-05,2]
[355594649,1741348206651,-277.79785199,8.199e-05,2]
[355594650,1741348207853,-222.20214801,8.199e-05,2]
[355594651,1741348207878,-295.33847495,8.199e-05,2]
[355594652,1741348207907,-500.0,8.199e-05,2]
[355594653,1741348207933,-8982.45937704,8.2e-05,2]
[355594654,1741348208385,-10000.0,8.2e-05,2]
[355594655,1741348208693,-10000.0,8.2e-05,2]
[355594656,1741348209201,-10000.0,8.2e-05,2]
[355594657,1741348209522,-10000.0,8.2e-05,2]
[355594658,1741348209901,-10000.0,8.2e-05,2]
[355594659,1741348210364,-10000.0,8.2e-05,2]
[355594660,1741348210566,-10000.0,8.2e-05,2]
[355594661,1741348210934,-10000.0,8.2e-05,2]
[355594662,1741348211244,-10000.0,8.2e-05,2]
[355594663,1741348211612,-10000.0,8.2e-05,2]
[355594664,1741348211898,-10000.0,8.2e-05,2]
[355594665,1741348212198,-10000.0,8.2e-05,2]
[355594666,1741348212587,-10000.0,8.2e-05,2]
[355594667,1741348213236,-2703.88376889,8.199e-05,2]
[355594668,1741348213260,-7296.11623111,8.2e-05,2]
[355594669,1741348213525,-10000.0,8.2e-05,2]
[355594670,1741348214063,-10000.0,8.2e-05,2]
[355594671,1741348214427,-10000.0,8.2e-05,2]
[355594672,1741348214765,-10000.0,8.2e-05,2]
[355594673,1741348215113,-10000.0,8.2e-05,2]
[355594674,1741348215600,-10000.0,8.2e-05,2]
[355594675,1741348216085,-10000.0,8.2e-05,2]
[355594676,1741348216504,-10000.0,8.2e-05,2]
[355594677,1741348217003,-10000.0,8.2e-05,2]
[355594678,1741348217352,-10000.0,8.2e-05,2]
[355594679,1741348217690,-10000.0,8.2e-05,2]
[355594680,1741348217999,-10000.0,8.2e-05,2]
[355594681,1741348218451,-10000.0,8.2e-05,2]
[355594682,1741348218896,-10000.0,8.2e-05,2]
[355594683,1741348219455,-10000.0,8.2e-05,2]
[355594684,1741348219927,-10000.0,8.2e-05,2]
[355594685,1741348220417,-10000.0,8.2e-05,2]
[355594686,1741348220821,-10000.0,8.2e-05,2]
[355594687,1741348221081,1120.24920749,0.00020111,120]
[355594688,1741348221119,-10000.0,8.2e-05,2]
[355594689,1741348221618,-10000.0,8.2e-05,2]
[355594690,1741348222098,-10000.0,8.2e-05,2]
[355594691,1741348222438,-10000.0,8.2e-05,2]
[355594692,1741348222967,-10000.0,8.2e-05,2]
[355594693,1741348223688,-10000.0,8.2e-05,2]
[355594694,1741348223771,-10000.0,8.2e-05,2]
[355594695,1741348224186,-10000.0,8.2e-05,2]
[355594696,1741348224729,-10000.0,8.2e-05,2]
[355594697,1741348225203,-10000.0,8.2e-05,2]
[355594698,1741348225478,-320000.0,8.2e-05,2]
[355594699,1741348225670,-10000.0,8.2e-05,2]
[355594700,1741348226119,-10000.0,8.2e-05,2]
[355594701,1741348226454,-10000.0,8.2e-05,2]
[355594702,1741348226747,-10000.0,8.2e-05,2]
[355594703,1741348227177,-10000.0,8.2e-05,2]
[355594704,1741348227596,-10000.0,8.2e-05,2]
[355594705,1741348227943,-10000.0,8.2e-05,2]
[355594706,1741348228420,-10000.0,8.2e-05,2]
[355594707,1741348228811,-10000.0,8.2e-05,2]
[355594708,1741348229110,-10000.0,8.2e-05,2]
[355594709,1741348229444,-10000.0,8.2e-05,2]
[355594710,1741348230080,-10000.0,8.2e-05,2]
[355594711,1741348230315,-10000.0,8.2e-05,2]
[355594712,1741348230721,-10000.0,8.2e-05,2]
[355594713,1741348231259,-10000.0,8.2e-05,2]
[355594714,1741348231575,-10000.0,8.2e-05,2]
[355594716,1741348231873,-780.09523378,8.2e-05,2]
[355594717,1741348231927,-75530.81983796,8.2e-05,2]
[355594718,1741348231980,-349.97130778,8.2e-05,2]
[355594719,1741348231992,-558.80506623,8.2e-05,2]
[355594720,1741348232029,-10000.0,8.2e-05,2]
[355594721,1741348232042,-576.15470345,8.2e-05,2]
[355594722,1741348232088,-87237.92142217,8.2e-05,2]
[355594723,1741348232100,-324.80493377,8.2e-05,2]
[355594724,1741348232112,-2002.65164984,8.2e-05,2]
[355594725,1741348232142,-836.99818261,8.2e-05,2]
[355594726,1741348232458,-10000.0,8.2e-05,2]
[355594733,1741348232775,-10000.0,8.2e-05,2]
[355594734,1741348233084,-10000.0,8.2e-05,2]
[355594735,1741348233465,-10000.0,8.2e-05,2]
[355594736,1741348234129,-10000.0,8.2e-05,2]
[355594737,1741348234313,-10000.0,8.2e-05,2]
[355594738,1741348234671,-10000.0,8.2e-05,2]
[355594739,1741348235153,-10000.0,8.2e-05,2]
[355594740,1741348235576,-10000.0,8.2e-05,2]
[355594741,1741348236070,-10000.0,8.2e-05,2]
[355594742,1741348236626,-10000.0,8.2e-05,2]
[355594743,1741348237047,-10000.0,8.2e-05,2]
[355594744,1741348237596,-10000.0,8.2e-05,2]
[355594747,1741348237998,-6896.435498,8.178e-05,2]
[355594748,1741348238027,-3103.564502,8.2e-05,2]
[355594749,1741348238074,-13885.02116116,8.2e-05,2]
[355594750,1741348238302,-10000.0,8.2e-05,2]
[355594751,1741348238666,-10000.0,8.2e-05,2]
[355594752,1741348239139,-10000.0,8.2e-05,2]
[355594753,1741348239556,-10000.0,8.2e-05,2]
[355594757,1741348239922,-10000.0,8.2e-05,2]
[355594758,1741348240004,-2096.77989395,8.2e-05,2]
[355594767,1741348240206,-10000.0,8.2e-05,2]
[355594769,1741348240219,-8785.30925163,8.2e-05,2]
[355594776,1741348240352,-345.92779086,8.2e-05,2]
[355594793,1741348240695,-10000.0,8.2e-05,2]
[355594809,1741348241068,-10000.0,8.2e-05,2]
[355594824,1741348241368,-10000.0,8.2e-05,2]
[355594851,1741348242084,-10000.0,8.2e-05,2]
[355594852,1741348242235,-10000.0,8.2e-05,2]
[355594853,1741348242710,-10000.0,8.2e-05,2]
[355594857,1741348243822,-810547.85283378,8.2e-05,2]
[355594858,1741348243833,-76274.17349538,8.2e-05,2]
[355594859,1741348243880,-10000.0,8.2e-05,2]
[355594860,1741348243939,-10000.0,8.2e-05,2]
[355594861,1741348244681,-10000.0,8.2e-05,2]
[355594862,1741348244745,-10000.0,8.2e-05,2]
[355594863,1741348244970,-10000.0,8.2e-05,2]
[355594864,1741348245436,-10000.0,8.2e-05,2]
[355594888,1741348245898,-10000.0,8.2e-05,2]
[355594893,1741348245936,-2532.22009719,8.2e-05,2]
[355594901,1741348246007,-3832.1324232,8.2e-05,2]
[355594911,1741348246932,-10000.0,8.2e-05,2]
[355594912,1741348247453,-10000.0,8.2e-05,2]
[355594913,1741348248465,-10000.0,8.2e-05,2]
[355594915,1741348279393,-696.02656301,8.199e-05,2]
[355594916,1741348279416,-300.0,8.199e-05,2]
[355594917,1741348279437,-150.0,8.199e-05,2]
[355594918,1741348279461,-3008.97343699,8.2e-05,2]
[355594920,1741348393093,172.73,6.617e-05,2]
[355594922,1741348506148,155.0,6.617e-05,3]
[355594923,1741348578144,571.08,8.017e-05,2]
[355594924,1741348604922,801.06,8.034e-05,2]
[355594925,1741348616190,-5100.0,8.19e-05,2]
[355594926,1741348667636,749.58614552,8.035e-05,2]
[355594927,1741348667659,5742.38385448,8.035e-05,2]
[355594928,1741348709306,166.41,8.036e-05,2]
[355594929,1741348709338,2878.939,8.036e-05,2]
[355594930,1741348710217,892.41,8.025e-05,2]
[355594931,1741348809815,155.0,6.617e-05,3]
[355594932,1741348922174,11258.17,8.046e-05,2]
[355594933,1741348977551,387.45,7.987e-05,2]
[355594934,1741349049386,200.0,7.985e-05,2]
[355594935,1741349049843,209.46,8.079e-05,2]
[355594936,1741349065450,64692.03440091,8e-05,2]
[355594937,1741349106504,158.0,8.079e-05,3]
[355594938,1741349106981,155.0,8e-05,3]
[355594939,1741349141670,-1300.0,0.00013,10]
[355594940,1741349228391,90454.01254179,0.00020111,120]
[355594941,1741349246465,300.0,7.996e-05,2]
[355594943,1741349411261,155.0,7.996e-05,3]
[355594944,1741349432048,-2335.83331472,8.1e-05,2]
[355594945,1741349432061,-1025.55818525,8.1e-05,2]
[355594946,1741349432074,-4699.69194116,8.1e-05,2]
[355594947,1741349432086,-3087.34795571,8.1e-05,2]
[355594948,1741349432110,-294.09328222,8.1e-05,2]
[355594949,1741349432122,-476.47053834,8.1e-05,2]
[355594950,1741349432216,-2632.29066215,8.1e-05,2]
[355594951,1741349432233,-39.96674734,8.1e-05,2]
[355594952,1741349432244,-150.0,8.123e-05,2]
[355594953,1741349432254,-358.1560525,8.145e-05,2]
[355594954,1741349432275,-641.8439475,8.145e-05,2]
[355594955,1741349432284,-500.0,8.183e-05,2]
[355594956,1741349432293,-420.45992011,8.183e-05,2]
[355594957,1741349432302,-4638.28687387,8.19e-05,2]
[355594958,1741349432323,-367.31016937,8.19e-05,2]
[355594959,1741349432333,-929.40002185,8.199e-05,2]
[355594960,1741349432342,-150.0,8.199e-05,2]
[355594961,1741349432351,-500.0,8.199e-05,2]
[355594962,1741349432361,-500.0,8.199e-05,2]
[355594963,1741349432370,-10.78267125,8.199e-05,2]
[355594964,1741349432382,-471.86375399,8.199e-05,2]
[355594965,1741349432391,-30.98851027,8.2e-05,2]
[355594966,1741349432402,-596.69634706,8.2e-05,2]
[355594967,1741349432415,-473.03771577,8.2e-05,2]
[355594968,1741349432427,-1693.15555652,8.2e-05,2]
[355594970,1741349432438,-32835.22025814,8.2e-05,2]
[355594972,1741349432450,-5835.77814978,8.2e-05,2]
[355594985,1741349437926,-266.202,8.2e-05,2]
[355594991,1741349438138,-2556.89156151,8.2e-05,2]
[355594992,1741349438149,-2015.8,8.2e-05,2]
[355594993,1741349438162,-4395.79661594,8.2e-05,2]
[355595000,1741349441893,-651.0,8.183e-05,2]
[355595039,1741349446053,-6346.62180657,8.183e-05,2]
[355595042,1741349446062,-35405.24046287,8.2e-05,2]
[355595045,1741349446072,-19498.24369661,8.2e-05,2]
[355595055,1741349446160,-7925.69103,8.2e-05,2]
[355595062,1741349446215,-18596.8,8.2e-05,2]
[355595071,1741349446323,-581.1519,8.2e-05,2]
[355595109,1741349522105,172.73,6.49e-05,2]
[355595110,1741349625609,23900.0,8.063e-05,2]
[355595111,1741349676359,176.24,8.063e-05,2]
[355595112,1741349711138,155.0,8.063e-05,3]